[Event "VII Cape Verde Championship 2023"]
[Site "Ponta do Sol"]
[Date "2023.12.03"]
[Round "1.1"]
[White "Rodriguez Guevara, Celia M."]
[Black "Alho, Diogo"]
[Result "0-1"]
[ECO "A80"]
[WhiteElo "1746"]
[BlackElo "2233"]
[Annotator "RC"]
[PlyCount "56"]
[EventDate "2023.11.30"]
[EventType "tourn"]
[EventCountry "KAP"]
[SourceTitle "playchess.com"]
[Source "ChessBase"]
[SourceQuality "1"]
[TimeControl "40/5400+30:1800+30"]

1. d4 {[%emt 0:00:17]} f5 {[%emt 0:01:25]} 2. Bf4 {[%emt 0:03:21]} Nf6 {[%emt 0:01:26]} 3. e3 {[%emt 0:01:58]} e6 {[%emt 0:03:15]} 4. Be2 {[%emt 0:04:50]} Be7 {[%emt 0:04:17]} 5. Nf3 {[%emt 0:02:49]} b6 {[%emt 0:00:41]} 6. Ne5 {[%emt 0:04:42]} O-O {[%emt 0:02:30]} 7. O-O {[%emt 0:03:05]} d6 {[%emt 0:02:47]} 8. Nf3 {[%emt 0:02:36]} Bb7 {[%emt 0:01:59]} 9. Nbd2 {[%emt 0:07:05]} h6 {[%emt 0:10:05]} 10. h3 {[%emt 0:12:14]} Nbd7 {[%emt 0:04:17]} 11. Re1 {[%emt 0:10:54]} Qe8 {[%emt 0:06:38]} 12. c3 {[%emt 0:17:11]} g5 {[%emt 0:12:06]} 13. Bh2 {[%emt 0:04:31]} g4 {[%emt 0:08:19]} 14. hxg4 {[%emt 0:01:46]} Nxg4 {[%emt 0:00:17]} 15. Bg3 {[%emt 0:00:40]} Qg6 {[%emt 0:00:33]} 16. Nf1 {[%emt 0:15:04]} h5 {[%emt 0:13:11]} 17. N1h2 {[%emt 0:02:36]} Nxe3 {[%emt 0:00:29]} 18. Qd2 {[%emt 0:01:55]} Nxg2 {[%emt 0:00:20]} 19. Kxg2 {[%emt 0:00:20]} h4 {[%emt 0:00:09]} 20. Rg1 {[%emt 0:00:39]} f4 {[%emt 0:02:09]} 21. Bd3 {[%emt 0:00:55]} Qg7 {[%emt 0:00:15]} 22. Kh1 {[%emt 0:00:23]} fxg3 {[%emt 0:00:23]} 23. fxg3 {[%emt 0:00:41]} Bxf3+ {[%emt 0:03:58]} 24. Nxf3 {[%emt 0:00:02]} Rxf3 {[%emt 0:00:07]} 25. Qg2 {[%emt 0:00:20]} Raf8 {[%emt 0:00:46]} 26. Qe2 {[%emt 0:00:56]} R8f6 {[%emt 0:03:08]} 27. Qe4 {[%emt 0:01:14]} hxg3 {[%emt 0:00:51]} 28. Bf1 {[%emt 0:00:50]} Qh8+ {[%emt 0:00:21]} 0-1

[Event "VII Cape Verde Championship 2023"]
[Site "Ponta do Sol"]
[Date "2023.12.03"]
[Round "1.2"]
[White "Santos, Kelim Morais"]
[Black "Vaz, Jose Carlos"]
[Result "0-1"]
[ECO "B21"]
[WhiteElo "1436"]
[BlackElo "1833"]
[Annotator "NA COMBH"]
[PlyCount "76"]
[EventDate "2023.11.30"]
[EventType "tourn"]
[EventCountry "KAP"]
[SourceTitle "playchess.com"]
[Source "ChessBase"]
[SourceQuality "1"]
[TimeControl "40/5400+30:1800+30"]

1. e4 {[%emt 0:00:29]} c5 {[%emt 0:01:05]} 2. d4 {[%emt 0:00:56]} cxd4 {[%emt 0:01:37]} 3. Qxd4 {[%emt 0:00:23]} Nc6 {[%emt 0:01:14]} 4. Qd1 {[%emt 0:01:29]} Nf6 {[%emt 0:02:48]} 5. Nc3 {[%emt 0:00:23]} g6 {[%emt 0:01:47]} 6. Nf3 {[%emt 0:01:29]} d6 {[%emt 0:00:22]} 7. Bb5 {[%emt 0:01:34]} a6 {[%emt 0:02:35]} 8. Bxc6+ {[%emt 0:00:56]} bxc6 {[%emt 0:00:26]} 9. O-O {[%emt 0:04:18]} Bg7 {[%emt 0:00:30]} 10. Re1 {[%emt 0:02:47]} O-O {[%emt 0:01:06]} 11. Bf4 {[%emt 0:04:46]} Qb6 {[%emt 0:01:32]} 12. Na4 {[%emt 0:03:22]} Qa5 {[%emt 0:01:47]} 13. c3 {[%emt 0:01:53]} c5 {[%emt 0:02:32]} 14. e5 {[%emt 0:02:16]} Nh5 {[%emt 0:03:58]} 15. Bd2 {[%emt 0:11:46]} Bd7 {[%emt 0:00:58]} 16. b3 {[%emt 0:00:55]} Bxa4 {[%emt 0:00:23]} 17. c4 {[%emt 0:02:53]} Qc7 {[%emt 0:00:43]} 18. bxa4 {[%emt 0:00:24]} dxe5 {[%emt 0:00:39]} 19. Rb1 {[%emt 0:04:37]} Rfd8 {[%emt 0:02:02]} 20. Qc2 {[%emt 0:03:57]} f5 {[%emt 0:06:59]} 21. Ng5 {[%emt 0:10:08]} Rd6 {[%emt 0:06:38]} 22. Red1 {[%emt 0:12:21]} h6 {[%emt 0:01:05]} 23. Nf3 {[%emt 0:05:24]} e4 {[%emt 0:01:57]} 24. Nh4 {[%emt 0:03:57]} Kh7 {[%emt 0:01:46]} 25. g3 {[%emt 0:02:18]} Rad8 {[%emt 0:01:07]} 26. Ng2 {[%emt 0:00:34]} Qd7 {[%emt 0:00:34]} 27. Ne3 {[%emt 0:03:06]} Rxd2 {[%emt 0:00:55]} 28. Rxd2 {[%emt 0:02:51]} Qxd2 {[%emt 0:00:21]} 29. Qb3 {[%emt 0:00:25]} Rd3 {[%emt 0:00:54]} 30. Qd1 {[%emt 0:00:16]} Qxa2 {[%emt 0:01:22]} 31. Qc2 {[%emt 0:05:16]} Qxc2 {[%emt 0:04:45]} 32. Nxc2 {[%emt 0:00:32]} f4 {[%emt 0:02:47]} 33. Ne1 {[%emt 0:00:36]} Rc3 {[%emt 0:00:16]} 34. Kg2 {[%emt 0:01:59]} f3+ {[%emt 0:00:47]} 35. Kf1 {[%emt 0:00:41]} Rxc4 {[%emt 0:00:19]} 36. Rb7 {[%emt 0:01:02]} Bf6 {[%emt 0:00:46]} 37. Rc7 {[%emt 0:01:55]} Rc1 {[%emt 0:01:10]} 38. Rc6 {[%emt 0:01:47]} Bc3 {[%emt 0:00:47]} 0-1

[Event "VII Cape Verde Championship 2023"]
[Site "Ponta do Sol"]
[Date "2023.12.03"]
[Round "1.3"]
[White "Barros, Luis"]
[Black "Teixeira, Gil"]
[Result "1-0"]
[ECO "C01"]
[WhiteElo "1656"]
[BlackElo "1820"]
[Annotator "NA COMBH"]
[PlyCount "93"]
[EventDate "2023.11.30"]
[EventType "tourn"]
[EventCountry "KAP"]
[SourceTitle "playchess.com"]
[Source "ChessBase"]
[SourceQuality "1"]
[TimeControl "40/5400+30:1800+30"]

1. e4 {[%emt 0:00:10]} e6 {[%emt 0:00:41]} 2. d4 {[%emt 0:00:27]} Ne7 {[%emt 0:00:09]} 3. Nc3 {[%emt 0:00:42]} Ng6 {[%emt 0:00:37]} 4. Nf3 {[%emt 0:00:53]} Be7 {[%emt 0:00:18]} 5. Bd3 {[%emt 0:00:49]} d6 {[%emt 0:00:18]} 6. Be3 {[%emt 0:02:09]} Nd7 {[%emt 1:31:27]} 7. Qd2 {[%emt 1:28:50]} a6 {[%emt 0:00:00]} 8. e5 {[%emt 0:00:00]} O-O {[%emt 0:00:00]} 9. h4 {[%emt 0:00:00]} Re8 {[%emt 0:00:00]} 10. h5 {[%emt 0:00:00]} Ngf8 {[%emt 0:00:00]} 11. g4 {[%emt 0:00:00]} f6 {[%emt 0:00:00]} 12. g5 {[%emt 0:00:00]} fxe5 {[%emt 0:00:00]} 13. d5 {[%emt 0:00:00]} exd5 {[%emt 0:00:00]} 14. Nxd5 {[%emt 0:00:00]} Nb6 {[%emt 0:00:00]} 15. Nxb6 {[%emt 0:00:00]} cxb6 {[%emt 0:04:30]} 16. Rg1 {[%emt 0:00:00]} d5 {[%emt 0:00:00]} 17. Nxe5 {[%emt 0:00:00]} Bd6 {[%emt 0:00:00]} 18. f4 {[%emt 0:00:00]} Bxe5 {[%emt 0:00:00]} 19. fxe5 {[%emt 0:00:00]} Rxe5 {[%emt 0:00:00]} 20. O-O-O {[%emt 0:00:00]} Ne6 {[%emt 0:00:00]} 21. Rdf1 {[%emt 0:00:00]} Bd7 {[%emt 0:00:00]} 22. h6 {[%emt 0:00:00]} g6 {[%emt 0:00:00]} 23. Bf4 {[%emt 0:00:00]} Nxf4 {[%emt 0:00:00]} 24. Qxf4 {[%emt 0:00:00]} Qe7 {[%emt 0:00:00]} 25. Qd4 {[%emt 0:00:00]} Re8 {[%emt 0:00:00]} 26. b3 {[%emt 0:00:00]} Rxg5 {[%emt 0:00:00]} 27. Kb1 {[%emt 0:00:00]} Rxg1 {[%emt 0:00:00]} 28. Rxg1 {[%emt 0:00:00]} Qe5 {[%emt 0:00:00]} 29. Qf2 {[%emt 0:00:00]} Qe3 {[%emt 0:00:00]} 30. Qh2 {[%emt 0:00:00]} Qe5 {[%emt 0:00:00]} 31. Qf2 {[%emt 0:00:00]} b5 {[%emt 0:00:00]} 32. Rf1 {[%emt 0:00:00]} Qe7 {[%emt 0:00:00]} 33. Qb6 {[%emt 0:00:00]} Bc6 {[%emt 0:00:00]} 34. Qd4 {[%emt 0:00:00]} Rf8 {[%emt 0:00:00]} 35. Rg1 {[%emt 0:00:00]} Qf6 {[%emt 0:00:00]} 36. Qg4 {[%emt 0:00:00]} Qd6 {[%emt 0:00:00]} 37. Qd4 {[%emt 0:00:00]} Qe7 {[%emt 0:00:00]} 38. Bxg6 {[%emt 0:00:00]} Qf6 {[%emt 0:00:00]} 39. Qd3 {[%emt 0:00:00]} Kh8 {[%emt 0:00:00]} 40. Bxh7 {[%emt 0:00:33]} Qxh6 {[%emt 0:00:00]} 41. Bg6 {[%emt 0:31:58]} Qh4 {[%emt 0:00:00]} 42. Qe3 {[%emt 0:03:18]} d4 {[%emt 0:00:00]} 43. Qe5+ {[%emt 0:00:26]} Rf6 {[%emt 0:00:00]} 44. Qb8+ {[%emt 0:01:05]} Kg7 {[%emt 0:00:00]} 45. Bh5+ {[%emt 0:02:04]} Rg6 {[%emt 0:00:00]} 46. Rxg6+ {[%emt 0:00:43]} Kh7 {[%emt 0:00:57]} 47. Qg8# 1-0

[Event "VII Cape Verde Championship 2023"]
[Site "Ponta do Sol"]
[Date "2023.12.03"]
[Round "1.4"]
[White "Mirulla, David"]
[Black "Monteiro, Antonio David Cabral"]
[Result "1/2-1/2"]
[ECO "B13"]
[WhiteElo "1929"]
[BlackElo "1801"]
[Annotator "NA RC"]
[PlyCount "67"]
[EventDate "2023.11.30"]
[EventType "tourn"]
[EventCountry "KAP"]
[SourceTitle "playchess.com"]
[Source "ChessBase"]
[SourceQuality "1"]
[TimeControl "40/5400+30:1800+30"]

1. e4 {[%emt 0:00:39]} c6 {[%emt 0:00:16]} 2. d4 {[%emt 0:00:12]} d5 {[%emt 0:00:11]} 3. exd5 {[%emt 0:00:11]} cxd5 {[%emt 0:00:24]} 4. Bd3 {[%emt 0:00:09]} Nc6 {[%emt 0:00:17]} 5. c3 {[%emt 0:00:09]} Nf6 {[%emt 0:00:19]} 6. Bf4 {[%emt 0:00:10]} Bg4 {[%emt 0:00:30]} 7. Qb3 {[%emt 0:01:16]} Qd7 {[%emt 0:00:26]} 8. Nd2 {[%emt 0:01:45]} e6 {[%emt 0:00:29]} 9. Ngf3 {[%emt 0:09:14]} Bxf3 {[%emt 0:00:24]} 10. Nxf3 {[%emt 0:00:23]} Bd6 {[%emt 0:01:27]} 11. Bxd6 {[%emt 0:10:52]} Qxd6 {[%emt 0:00:25]} 12. O-O {[%emt 0:07:40]} O-O {[%emt 0:01:35]} 13. Rae1 {[%emt 0:01:41]} Rfc8 {[%emt 0:03:23]} 14. Ne5 {[%emt 0:01:35]} Rc7 {[%emt 0:11:28]} 15. f4 {[%emt 0:06:35]} g6 {[%emt 0:05:13]} 16. Qd1 {[%emt 0:03:50]} a6 {[%emt 0:04:10]} 17. Re3 {[%emt 0:04:15]} Kg7 {[%emt 0:06:25]} 18. Qe1 {[%emt 0:05:41]} Ne7 {[%emt 0:07:21]} 19. g4 {[%emt 0:05:38]} b5 {[%emt 0:07:03]} 20. Qh4 {[%emt 0:04:42]} b4 {[%emt 0:07:18]} 21. g5 {[%emt 0:15:55]} Nh5 {[%emt 0:00:58]} 22. f5 {[%emt 0:04:09]} exf5 {[%emt 0:02:51]} 23. Bxf5 {[%emt 0:03:19]} Nxf5 {[%emt 0:03:35]} 24. Rxf5 {[%emt 0:00:24]} gxf5 {[%emt 0:15:27]} 25. Qxh5 {[%emt 0:00:12]} bxc3 {[%emt 0:04:11]} 26. bxc3 {[%emt 0:00:19]} Rb8 {[%emt 0:02:26]} 27. Rh3 {[%emt 0:01:06]} Rh8 {[%emt 0:02:55]} 28. Qf3 {[%emt 0:02:41]} Qa3 {[%emt 0:03:12]} 29. Qxf5 {[%emt 0:00:50]} Qc1+ {[%emt 0:00:27]} 30. Kg2 {[%emt 0:00:24]} Qd2+ {[%emt 0:00:30]} 31. Kf1 {[%emt 0:00:25]} Qd1+ {[%emt 0:01:11]} 32. Kf2 {[%emt 0:01:03]} Qd2+ {[%emt 0:00:31]} 33. Kf1 {[%emt 0:00:18]} Qd1+ {[%emt 0:09:42]} 34. Kf2 {[%emt 0:09:48]} 1/2-1/2

[Event "VII Cape Verde Championship 2023"]
[Site "Ponta do Sol"]
[Date "2023.12.03"]
[Round "1.5"]
[White "Ortega Amarelle, Mariano"]
[Black "Silva, Bryan Jorge"]
[Result "1-0"]
[ECO "B50"]
[WhiteElo "2478"]
[BlackElo "1586"]
[Annotator "RC"]
[PlyCount "61"]
[EventDate "2023.11.30"]
[EventType "tourn"]
[EventCountry "KAP"]
[SourceTitle "playchess.com"]
[Source "ChessBase"]
[SourceQuality "1"]
[TimeControl "40/5400+30:1800+30"]

1. e4 {[%emt 0:00:08]} c5 {[%emt 0:00:05]} 2. Nf3 {[%emt 0:00:07]} d6 {[%emt 0:00:09]} 3. c3 {[%emt 0:00:22]} Nf6 {[%emt 0:02:07]} 4. Be2 {[%emt 0:00:10]} e6 {[%emt 0:00:45]} 5. O-O {[%emt 0:00:14]} Be7 {[%emt 0:01:30]} 6. Re1 {[%emt 0:00:21]} O-O {[%emt 0:00:28]} 7. Bf1 {[%emt 0:00:16]} e5 {[%emt 0:01:03]} 8. d4 {[%emt 0:00:25]} cxd4 {[%emt 0:00:16]} 9. cxd4 {[%emt 0:00:07]} exd4 {[%emt 0:01:44]} 10. Nxd4 {[%emt 0:00:09]} Nc6 {[%emt 0:00:16]} 11. Nc3 {[%emt 0:00:52]} Qb6 {[%emt 0:01:49]} 12. Nb3 {[%emt 0:07:42]} Be6 {[%emt 0:03:43]} 13. Be3 {[%emt 0:00:52]} Qd8 {[%emt 0:03:17]} 14. Nd4 {[%emt 0:00:19]} Bd7 {[%emt 0:09:40]} 15. h3 {[%emt 0:00:57]} a6 {[%emt 0:03:16]} 16. Rc1 {[%emt 0:04:11]} Rc8 {[%emt 0:00:16]} 17. f4 {[%emt 0:03:43]} Be6 {[%emt 0:10:19]} 18. Nxe6 {[%emt 0:04:32]} fxe6 {[%emt 0:00:11]} 19. Qb3 {[%emt 0:00:10]} Qd7 {[%emt 0:05:53]} 20. f5 {[%emt 0:00:31]} Nd8 {[%emt 0:00:35]} 21. Bc4 {[%emt 0:02:39]} d5 {[%emt 0:04:52]} 22. fxe6 {[%emt 0:01:42]} Qxe6 {[%emt 0:01:02]} 23. Nxd5 {[%emt 0:01:42]} Kh8 {[%emt 0:00:53]} 24. Nb6 {[%emt 0:01:20]} Rxc4 {[%emt 0:01:54]} 25. Qxc4 {[%emt 0:00:13]} Qxe4 {[%emt 0:03:40]} 26. Qxe4 {[%emt 0:00:39]} Nxe4 {[%emt 0:00:09]} 27. Nd7 {[%emt 0:03:21]} Rf7 {[%emt 0:01:20]} 28. Bb6 {[%emt 0:05:12]} Nf6 {[%emt 0:05:40]} 29. Nxf6 {[%emt 0:00:29]} gxf6 {[%emt 0:00:20]} 30. Bxd8 {[%emt 0:00:12]} Bxd8 {[%emt 0:00:24]} 31. Re8+ {[%emt 0:00:11]} 1-0

[Event "VII Cape Verde Championship 2023"]
[Site "Ponta do Sol"]
[Date "2023.12.04"]
[Round "2.1"]
[White "Alho, Diogo"]
[Black "Silva, Bryan Jorge"]
[Result "1-0"]
[ECO "A45"]
[WhiteElo "2233"]
[BlackElo "1586"]
[Annotator "ChessBase"]
[PlyCount "73"]
[EventDate "2023.11.30"]
[EventType "tourn"]
[EventCountry "KAP"]
[SourceTitle "playchess.com"]
[Source "ChessBase"]
[SourceQuality "1"]
[TimeControl "40/5400+30:1800+30"]

1. d4 {[%emt 0:00:38]} e6 {[%emt 0:00:19]} 2. g3 {[%emt 0:02:34]} Nf6 {[%emt 0:01:40]} 3. Bg2 {[%emt 0:02:04]} g6 {[%emt 0:00:57]} 4. e4 {[%emt 0:01:29]} d6 {[%emt 0:02:02]} 5. Nc3 {[%emt 0:05:58]} Nbd7 {[%emt 0:02:01]} 6. Bg5 {[%emt 0:05:42]} Bg7 {[%emt 0:05:03]} 7. h3 {[%emt 0:10:09]} h6 {[%emt 0:01:43]} 8. Be3 {[%emt 0:00:04]} c6 {[%emt 0:15:29]} 9. a4 {[%emt 0:06:27]} a5 {[%emt 0:04:10]} 10. Qd2 {[%emt 0:02:14]} Nb6 {[%emt 0:02:51]} 11. b3 {[%emt 0:00:54]} Nbd7 {[%emt 0:04:02]} 12. Rd1 {[%emt 0:09:22]} O-O {[%emt 0:09:29]} 13. Bxh6 {[%emt 0:01:21]} Qb6 {[%emt 0:11:26]} 14. Nge2 {[%emt 0:03:04]} e5 {[%emt 0:05:58]} 15. d5 {[%emt 0:05:24]} cxd5 {[%emt 0:00:32]} 16. Bxg7 {[%emt 0:00:56]} Kxg7 {[%emt 0:00:19]} 17. Nxd5 {[%emt 0:00:06]} Qc5 {[%emt 0:02:59]} 18. Ne3 {[%emt 0:03:09]} Ra6 {[%emt 0:03:24]} 19. Nc4 {[%emt 0:09:57]} Ne8 {[%emt 0:03:11]} 20. Nc3 {[%emt 0:02:01]} Nb6 {[%emt 0:02:35]} 21. Ne3 {[%emt 0:03:16]} Be6 {[%emt 0:02:50]} 22. Bf1 {[%emt 0:01:53]} Ra8 {[%emt 0:00:09]} 23. Nb5 {[%emt 0:00:32]} Rd8 {[%emt 0:00:40]} 24. Qxa5 {[%emt 0:03:40]} Ra8 {[%emt 0:04:10]} 25. Qc3 {[%emt 0:01:16]} Qxc3+ {[%emt 0:00:29]} 26. Nxc3 {[%emt 0:00:03]} f5 {[%emt 0:01:08]} 27. exf5 {[%emt 0:01:49]} Bxf5 {[%emt 0:00:14]} 28. Bg2 {[%emt 0:00:16]} Rc8 {[%emt 0:00:53]} 29. Ne4 {[%emt 0:02:45]} d5 {[%emt 0:02:18]} 30. Nxd5 {[%emt 0:01:41]} Nxd5 {[%emt 0:00:33]} 31. Rxd5 {[%emt 0:00:07]} Rxc2 {[%emt 0:00:12]} 32. O-O {[%emt 0:00:24]} Bxe4 {[%emt 0:02:13]} 33. Bxe4 {[%emt 0:02:28]} Rb2 {[%emt 0:00:10]} 34. Rd7+ {[%emt 0:01:13]} Rf7 {[%emt 0:00:16]} 35. Rxf7+ {[%emt 0:00:14]} Kxf7 {[%emt 0:00:12]} 36. Bxb7 {[%emt 0:00:12]} Rxb3 {[%emt 0:00:25]} 37. Bd5+ {[%emt 0:00:08]} 1-0

[Event "VII Cape Verde Championship 2023"]
[Site "Ponta do Sol"]
[Date "2023.12.04"]
[Round "2.2"]
[White "Monteiro, Antonio David Cabral"]
[Black "Ortega Amarelle, Mariano"]
[Result "0-1"]
[ECO "A43"]
[WhiteElo "1801"]
[BlackElo "2478"]
[Annotator "RC"]
[PlyCount "98"]
[EventDate "2023.11.30"]
[EventType "tourn"]
[EventCountry "KAP"]
[SourceTitle "playchess.com"]
[Source "ChessBase"]
[SourceQuality "1"]
[TimeControl "40/5400+30:1800+30"]

1. d4 {[%emt 0:01:44]} c5 {[%emt 0:05:49]} 2. Nf3 {[%emt 0:02:41]} cxd4 {[%emt 0:01:00]} 3. Nxd4 {[%emt 0:01:49]} d5 {[%emt 0:01:33]} 4. Bf4 {[%emt 0:06:09]} f6 {[%emt 0:03:52]} 5. e3 {[%emt 0:05:53]} e5 {[%emt 0:07:33]} 6. Bxe5 {[%emt 0:00:34]} fxe5 {[%emt 0:00:07]} 7. Qh5+ {[%emt 0:00:43]} Ke7 {[%emt 0:01:25]} 8. Qxe5+ {[%emt 0:02:03]} Kf7 {[%emt 0:00:15]} 9. Nc3 {[%emt 0:06:57]} Nf6 {[%emt 0:00:17]} 10. Bd3 {[%emt 0:08:48]} Nc6 {[%emt 0:02:29]} 11. Nxc6 {[%emt 0:04:15]} bxc6 {[%emt 0:00:07]} 12. e4 {[%emt 0:01:48]} Bd6 {[%emt 0:01:09]} 13. Qg5 {[%emt 0:01:33]} h6 {[%emt 0:01:20]} 14. Qd2 {[%emt 0:01:53]} Qc7 {[%emt 0:03:57]} 15. g3 {[%emt 0:06:51]} dxe4 {[%emt 0:08:05]} 16. Bc4+ {[%emt 0:09:13]} Kg6 {[%emt 0:00:54]} 17. O-O-O {[%emt 0:01:28]} Bb4 {[%emt 0:01:48]} 18. Qe3 {[%emt 0:04:24]} Qb6 {[%emt 0:03:10]} 19. Qxb6 {[%emt 0:11:46]} axb6 {[%emt 0:00:11]} 20. Nxe4 {[%emt 0:00:52]} Nxe4 {[%emt 0:10:38]} 21. Bd3 {[%emt 0:01:17]} Rxa2 {[%emt 0:02:55]} 22. c3 {[%emt 0:06:25]} Ra1+ {[%emt 0:05:53]} 23. Kc2 {[%emt 0:00:45]} Rxd1 {[%emt 0:00:08]} 24. Rxd1 {[%emt 0:00:52]} Be7 {[%emt 0:01:37]} 25. Bxe4+ {[%emt 0:01:22]} Bf5 {[%emt 0:00:10]} 26. Bxf5+ {[%emt 0:02:01]} Kxf5 {[%emt 0:00:11]} 27. Rd7 {[%emt 0:01:00]} Ke6 {[%emt 0:00:21]} 28. Rb7 {[%emt 0:01:15]} b5 {[%emt 0:00:11]} 29. f4 {[%emt 0:00:58]} Ra8 {[%emt 0:06:01]} 30. h3 {[%emt 0:04:31]} Ra1 {[%emt 0:00:54]} 31. f5+ {[%emt 0:00:19]} Kd6 {[%emt 0:00:15]} 32. c4 {[%emt 0:01:26]} bxc4 {[%emt 0:00:16]} 33. Kc3 {[%emt 0:00:13]} Rc1+ {[%emt 0:01:36]} 34. Kd2 {[%emt 0:00:57]} Rg1 {[%emt 0:00:14]} 35. Kc3 {[%emt 0:00:33]} Rxg3+ {[%emt 0:00:30]} 36. Kxc4 {[%emt 0:00:13]} Rxh3 {[%emt 0:00:13]} 37. b4 {[%emt 0:00:56]} Bf6 {[%emt 0:01:09]} 38. b5 {[%emt 0:00:43]} cxb5+ {[%emt 0:00:53]} 39. Rxb5 {[%emt 0:00:23]} Rc3+ {[%emt 0:00:09]} 40. Kb4 {[%emt 0:00:22]} h5 {[%emt 0:00:20]} 41. Rb6+ {[%emt 0:31:24]} Rc6 {[%emt 0:30:29]} 42. Rb5 {[%emt 0:00:18]} h4 {[%emt 0:00:16]} 43. Rb8 {[%emt 0:01:00]} Ke5 {[%emt 0:00:12]} 44. Rb5+ {[%emt 0:01:07]} Kf4 {[%emt 0:00:09]} 45. Rd5 {[%emt 0:00:00]} Rc1 {[%emt 0:00:00]} 46. Kb3 {[%emt 0:00:00]} h3 {[%emt 0:00:00]} 47. Rd2 {[%emt 0:00:00]} Kxf5 {[%emt 0:00:00]} 48. Rh2 {[%emt 0:00:00]} Kg4 {[%emt 0:00:00]} 49. Kb4 {[%emt 0:00:00]} Kg3 {[%emt 0:00:00]} 0-1

[Event "VII Cape Verde Championship 2023"]
[Site "Ponta do Sol"]
[Date "2023.12.04"]
[Round "2.3"]
[White "Teixeira, Gil"]
[Black "Mirulla, David"]
[Result "0-1"]
[ECO "A02"]
[WhiteElo "1820"]
[BlackElo "1929"]
[Annotator "NA RC"]
[PlyCount "74"]
[EventDate "2023.11.30"]
[EventType "tourn"]
[EventCountry "KAP"]
[SourceTitle "playchess.com"]
[Source "ChessBase"]
[SourceQuality "1"]
[TimeControl "40/5400+30:1800+30"]

1. f4 {[%emt 0:00:12]} e5 {[%emt 0:04:01]} 2. fxe5 {[%emt 0:01:33]} d6 {[%emt 0:00:23]} 3. Nf3 {[%emt 0:00:18]} dxe5 {[%emt 0:00:51]} 4. d3 {[%emt 0:01:30]} Bc5 {[%emt 0:05:57]} 5. e3 {[%emt 0:00:46]} Nc6 {[%emt 0:04:01]} 6. Be2 {[%emt 0:01:29]} Nf6 {[%emt 0:03:36]} 7. O-O {[%emt 0:07:35]} Ng4 {[%emt 0:08:34]} 8. d4 {[%emt 0:01:56]} exd4 {[%emt 0:06:48]} 9. Nxd4 {[%emt 0:01:09]} Nxe3 {[%emt 0:05:12]} 10. Bxe3 {[%emt 0:01:50]} Bxd4 {[%emt 0:00:11]} 11. Bxd4 {[%emt 0:00:29]} Qxd4+ {[%emt 0:00:19]} 12. Qxd4 {[%emt 0:01:04]} Nxd4 {[%emt 0:00:10]} 13. Bd3 {[%emt 0:00:40]} O-O {[%emt 0:05:10]} 14. Nc3 {[%emt 0:00:49]} Be6 {[%emt 0:04:23]} 15. Rf4 {[%emt 0:02:57]} Rad8 {[%emt 0:03:02]} 16. Raf1 {[%emt 0:00:46]} f5 {[%emt 0:05:34]} 17. Re1 {[%emt 0:02:34]} Rfe8 {[%emt 0:02:13]} 18. b3 {[%emt 0:04:57]} g5 {[%emt 0:03:28]} 19. Rff1 {[%emt 0:00:46]} Kg7 {[%emt 0:07:15]} 20. Re3 {[%emt 0:01:18]} h6 {[%emt 0:04:01]} 21. Nb5 {[%emt 0:02:05]} Nxb5 {[%emt 0:06:21]} 22. Bxb5 {[%emt 0:01:18]} c6 {[%emt 0:00:59]} 23. Bd3 {[%emt 0:00:22]} f4 {[%emt 0:00:25]} 24. Re5 {[%emt 0:00:50]} Kf6 {[%emt 0:01:00]} 25. Ree1 {[%emt 0:01:00]} Bf5 {[%emt 0:01:52]} 26. Rxe8 {[%emt 0:03:24]} Rxe8 {[%emt 0:00:13]} 27. Bxf5 {[%emt 0:00:27]} Kxf5 {[%emt 0:00:10]} 28. Kf2 {[%emt 0:00:25]} Re3 {[%emt 0:01:31]} 29. Rd1 {[%emt 0:00:58]} Rc3 {[%emt 0:00:57]} 30. Rd2 {[%emt 0:00:21]} h5 {[%emt 0:02:34]} 31. Ke2 {[%emt 0:00:35]} g4 {[%emt 0:01:08]} 32. Kd1 {[%emt 0:01:32]} h4 {[%emt 0:03:24]} 33. Rd7 {[%emt 0:00:20]} h3 {[%emt 0:02:30]} 34. gxh3 {[%emt 0:02:19]} Rxh3 {[%emt 0:00:19]} 35. Rxb7 {[%emt 0:01:13]} Rxh2 {[%emt 0:00:18]} 36. Kc1 {[%emt 0:00:51]} g3 {[%emt 0:00:19]} 37. Rg7 {[%emt 0:00:15]} g2 {[%emt 0:09:51]} 0-1